bitfinex/quotes_ETHUSD_20251217
["timestamp","ask_amount","ask_price","bid_price","bid_amount"]
[1766006908999,4.89691855,2825.7,2824.3,2.1342]
[1766006909315,0.405504,2825.5,2824.3,2.34782]
[1766006909514,1.35797081,2825.5,2824.3,0.21562]
[1766006909827,0.89359058,2825.5,2824.3,2.1342]
[1766006911031,1.35797081,2825.5,2824.3,2.1342]
[1766006911416,0.89359058,2825.5,2824.3,2.1342]
[1766006911618,0.17822571,2825.4,2824.3,2.1342]
[1766006911826,0.001,2825.8,2825.0,1.6714]
[1766006912139,0.48908658,2825.8,2824.4,4.60478403]
[1766006912294,0.48908658,2825.8,2824.6,2.1322]
[1766006913436,0.405504,2825.7,2824.6,2.1322]
[1766006913924,0.40167904,2825.9,2824.6,2.34542]
[1766006914305,0.40167904,2825.9,2824.7,2.1322]
[1766006916307,0.88976562,2825.9,2824.7,2.1322]
[1766006918606,0.88976562,2825.9,2824.6,0.21322]
[1766006918812,1.35797081,2826.2,2824.9,2.1322]
[1766006920331,0.001,2825.9,2824.9,2.1322]
[1766006922131,0.001,2825.9,2824.9,1.6618]
[1766006924236,0.001,2825.9,2824.9,2.1439]
[1766006924745,0.46538023,2825.9,2824.9,2.1439]
[1766006925038,0.44094745,2825.8,2824.6,6.6809051]
[1766006925341,0.44094745,2825.8,2824.7,2.1439]
[1766006925731,0.001,2825.9,2824.7,2.1439]
[1766006925911,0.001,2825.9,2824.7,1.6618]
[1766006926112,0.001,2825.9,2824.8,0.4821]
[1766006926341,0.001,2825.9,2824.8,2.1439]
[1766006926644,0.46041354,2825.9,2824.9,0.21439]
[1766006927843,0.94850012,2825.9,2824.9,0.21439]
[1766006928143,0.48808658,2825.8,2824.9,0.21439]
[1766006928449,0.48808658,2825.8,2824.9,2.35829]
[1766006929657,0.95246681,2825.8,2824.9,0.21439]
[1766006929821,0.44921625,2825.7,2824.7,2.1439]
[1766006930651,0.48808658,2825.8,2824.7,2.1439]
[1766006931242,0.48808658,2825.8,2824.7,1.6618]
[1766006931447,0.48808658,2825.8,2824.8,0.4821]
[1766006931953,0.48808658,2825.8,2824.8,2.1439]
[1766006933048,0.46538023,2825.9,2824.8,2.1439]
[1766006933253,0.44094594,2825.8,2824.8,2.35849]
[1766006935855,0.001,2825.9,2824.8,2.35849]
[1766006936329,0.46538023,2825.9,2824.8,2.35849]
[1766006936533,0.95346681,2825.9,2824.8,2.35849]
[1766006936733,0.95346681,2825.9,2824.8,0.21459]
[1766006937045,0.95346681,2825.9,2824.6,2.1459]
[1766006937236,0.48908658,2825.9,2824.8,0.002]
[1766006937832,0.48908658,2825.9,2824.8,2.1459]
[1766006939733,0.48808658,2825.8,2824.8,0.002]
[1766006939935,0.95246681,2825.8,2824.8,0.002]
[1766006940236,0.44921694,2825.7,2824.8,0.002]
[1766006940953,0.405504,2825.7,2824.8,0.002]
[1766006941847,0.405504,2825.7,2824.9,2.1439]
[1766006942352,0.405504,2825.7,2824.8,0.002]
[1766006942932,0.48808658,2825.8,2824.9,2.1439]
[1766006943569,0.48808658,2825.8,2824.8,0.002]
[1766006943759,0.93796188,2825.8,2824.8,0.002]
[1766006944871,0.48808658,2825.8,2824.8,0.002]
[1766006945163,0.93729567,2825.8,2824.8,3.028392]
[1766006952669,1.4016759,2825.8,2824.8,3.028392]
[1766006952872,1.38717097,2825.8,2824.8,0.002]
[1766006953267,1.8515512,2825.8,2824.8,0.002]
[1766006956669,5.39044193,2825.8,2824.8,0.002]
[1766006956869,0.53914419,2825.7,2824.8,0.002]
[1766006957074,1.02723077,2825.7,2824.8,0.002]
[1766006957479,6.67701998,2825.5,2824.6,0.002]
[1766006957645,0.405504,2825.4,2824.3,2.0655]
[1766006957999,0.7082524,2825.4,2824.6,2.0635]
[1766006958176,0.18468448,2825.6,2824.6,2.0635]
[1766006958744,0.67277106,2825.6,2824.6,2.0635]
[1766006958946,0.67277106,2825.6,2824.6,3.12789406]
[1766006959475,0.48808658,2825.5,2824.6,1.06439406]
[1766006962075,0.48808658,2825.5,2824.5,8.74251998]
[1766006962277,0.48808658,2825.5,2824.5,9.80691404]
[1766006963286,0.48808658,2825.5,2824.5,3.12989406]
[1766006963784,0.405504,2825.4,2824.5,1.06639406]
[1766006964083,0.86988423,2825.2,2824.3,0.002]
[1766006964279,0.75469042,2825.1,2824.3,2.0655]
[1766006964582,1.06453759,2825.4,2824.4,2.09890574]
[1766006964881,0.405504,2825.3,2824.4,2.09890574]
[1766006965182,0.405504,2825.3,2824.4,2.0635]
[1766006965351,1.06453759,2825.4,2824.4,2.0635]
[1766006965682,0.405504,2825.5,2824.3,0.002]
[1766006965890,1.46996982,2825.5,2824.5,1.5954]
[1766006966097,1.46996982,2825.5,2824.6,2.0635]
[1766006966975,0.18468448,2825.6,2824.7,2.0635]
[1766006967300,0.18468448,2825.6,2824.4,0.668102]
[1766006967301,0.48808658,2825.5,2824.4,0.668102]
[1766006967587,0.48808658,2825.5,2824.6,0.4681]
[1766006967767,0.48808658,2825.5,2824.6,2.0635]
[1766006967962,0.48808658,2825.5,2824.7,0.20635]
[1766006970093,0.48808658,2825.5,2824.7,0.67445]
[1766006970300,0.48808658,2825.5,2824.7,2.0635]
[1766006975294,0.18468448,2825.6,2824.7,2.0635]
[1766006975693,0.67277106,2825.6,2824.7,2.0635]
[1766006975874,0.48808658,2825.5,2824.7,2.0635]
[1766006976598,0.18468448,2825.6,2824.8,1.5954]
[1766006976794,0.001,2825.5,2824.9,0.827242]
[1766006976999,0.001,2825.5,2825.0,2.0635]
[1766006979302,0.001,2825.5,2824.8,2.0635]
[1766006980491,0.001,2825.5,2825.3,2.0635]
[1766006985286,0.001,2825.5,2825.2,2.0162]
[1766006985487,0.001,2825.5,2825.3,2.88552682]
[1766006985974,0.001,2825.5,2825.3,2.0162]
[1766006987398,0.001,2825.5,2825.2,0.4601]
[1766006987587,0.001,2825.5,2825.3,2.0162]
[1766006987792,0.001,2825.5,2825.0,6.67706821]
[1766006988045,0.001,2825.5,2825.2,0.4601]
[1766006988199,0.001,2825.5,2825.2,0.71371682]
[1766006988407,0.001,2825.5,2825.4,0.4601]
[1766006988587,0.001,2825.5,2825.4,2.0162]
[1766006989203,6.39,2825.8,2825.4,2.0162]
[1766006993297,6.391,2825.8,2825.4,2.0162]
[1766007000818,7.07663802,2825.8,2825.0,8.69326821]
[1766007001023,7.07663802,2825.8,2825.0,2.0162]
[1766007002190,7.07663802,2825.8,2824.9,0.46438023]
[1766007002393,7.07663802,2825.8,2825.1,0.4601]
[1766007002594,7.07663802,2825.8,2825.1,2.0162]
[1766007005031,7.07663802,2825.8,2824.9,0.46438023]
[1766007005329,6.391,2825.8,2825.1,2.0162]
[1766007006397,6.391,2825.8,2825.1,1.5561]
[1766007006806,6.391,2825.8,2825.2,2.0162]
[1766007007832,6.391,2825.8,2825.1,1.5561]
[1766007008033,6.391,2825.8,2825.2,2.0162]
[1766007008825,0.46438023,2825.7,2825.1,2.0182]
[1766007009733,0.46438023,2825.7,2825.2,2.0162]
[1766007009915,0.46438023,2825.7,2825.3,1.9896]
[1766007015549,0.46438023,2825.7,2825.1,0.002]
[1766007015758,0.001,2826.4,2825.8,0.4457]
[1766007016041,0.001,2826.4,2825.2,2.0341]
[1766007016042,0.48808658,2826.2,2825.2,2.0341]
[1766007016241,0.001,2825.8,2825.2,2.0341]
[1766007016452,0.001,2825.8,2825.3,2.23771]
[1766007016813,0.001,2825.8,2825.3,0.20361]
[1766007017137,0.001,2825.8,2825.1,0.002]
[1766007017441,0.001,2825.8,2825.2,2.0341]
[1766007018745,0.001,2825.8,2825.1,0.002]
[1766007018932,0.001,2825.8,2825.2,2.0341]
[1766007019331,0.001,2825.8,2825.2,1.5884]
[1766007019517,0.001,2825.8,2825.3,2.0341]
[1766007021249,0.001,2825.8,2825.1,0.002]
[1766007021438,0.001,2825.8,2825.1,0.20561]
[1766007024556,0.001,2825.8,2825.2,1.5884]
[1766007024758,0.001,2825.8,2825.5,0.4457]
[1766007024944,0.001,2825.8,2825.4,1.5884]
[1766007025137,0.001,2825.8,2825.4,2.0341]
[1766007025651,0.001,2825.8,2825.2,0.4457]
[1766007025972,0.001,2825.8,2825.3,0.03539447]
[1766007026121,0.001,2825.8,2825.2,0.4457]
[1766007026320,0.001,2825.8,2825.3,0.4457]
[1766007026627,0.001,2825.8,2825.6,2.0341]
[1766007026825,0.18462626,2826.3,2825.3,2.0341]
[1766007027049,0.67271284,2826.3,2825.3,2.0341]
[1766007027222,0.48808658,2826.2,2825.3,2.0341]
[1766007029660,0.48808658,2826.2,2825.1,2.0361]
[1766007029862,7.96712426,2826.1,2825.1,0.002]
[1766007030155,1.46977345,2826.1,2825.3,0.4457]
[1766007030339,0.405504,2826.1,2825.3,2.0341]
[1766007030534,0.851204,2826.1,2825.3,2.0341]
[1766007031254,1.33929058,2826.1,2825.3,2.0341]
[1766007031756,0.48808658,2826.0,2825.3,2.0341]
[1766007031960,0.67386424,2826.0,2825.3,2.0341]
[1766007032541,0.67386424,2826.0,2825.1,2.0361]
[1766007033967,0.405504,2825.9,2825.1,0.002]
[1766007034963,0.405504,2825.9,2825.1,0.03739697]
[1766007035163,0.405504,2825.9,2825.1,0.002]
[1766007035460,0.405504,2825.9,2825.1,2.0361]
[1766007035662,0.405504,2825.9,2825.1,0.002]
[1766007036230,0.405504,2825.9,2825.1,2.0361]
[1766007038161,0.4457,2826.0,2825.2,2.06949572]
[1766007038366,0.405504,2826.1,2825.2,2.06949572]
[1766007038577,0.46438023,2826.0,2825.2,2.0341]
[1766007039062,0.001,2825.9,2825.2,2.0341]
[1766007041167,0.001,2825.9,2825.1,0.20581]
[1766007041359,0.001,2825.9,2825.2,2.0354]
[1766007041565,0.48908658,2825.9,2825.1,0.002]
[1766007041762,0.001,2825.9,2825.1,0.002]
[1766007042558,0.79296384,2825.9,2825.1,0.002]
[1766007042876,0.79296384,2825.9,2825.2,2.0354]
[1766007047285,0.001,2825.9,2825.1,0.002]
[1766007047479,0.001,2825.9,2825.3,0.4787]
[1766007047680,0.001,2825.9,2825.3,2.0354]
[1766007051393,0.001,2825.9,2825.1,0.002]
[1766007051887,0.001,2825.9,2825.2,2.0354]
[1766007052097,0.001,2825.9,2825.3,2.23914]
[1766007052263,0.001,2825.9,2825.3,2.0354]
[1766007056803,0.001,2825.9,2825.1,2.0374]
[1766007058798,0.001,2825.9,2825.1,0.002]
[1766007058999,0.001,2825.9,2825.2,2.0354]
[1766007062601,0.001,2825.9,2825.3,1.5567]
[1766007062822,0.001,2825.9,2825.6,2.0354]
[1766007063475,0.001,2825.9,2825.1,0.002]
[1766007063782,0.46438023,2825.5,2824.4,0.668102]
[1766007064000,0.46438023,2825.5,2824.5,2.0374]
[1766007064301,0.46438023,2825.5,2824.6,2.0354]
[1766007065308,0.89359058,2825.4,2824.5,0.002]
[1766007067722,0.89359058,2825.4,2824.5,2.0374]
[1766007071498,0.89359058,2825.4,2824.5,0.002]
[1766007074199,0.405504,2825.2,2824.5,0.002]
[1766007075111,0.48972402,2825.3,2824.5,1.9827]
[1766007075314,0.405504,2825.4,2824.6,1.9807]
[1766007075530,0.405504,2825.4,2824.7,0.4666]
[1766007075744,0.405504,2825.5,2824.7,1.9807]
[1766007076835,0.18483765,2825.4,2824.8,1.5141]
[1766007078035,0.18583765,2825.4,2824.8,1.5141]
[1766007078334,0.18583765,2825.4,2824.7,0.4666]
[1766007078536,0.18583765,2825.4,2824.9,1.9807]
[1766007078712,0.18583765,2825.4,2824.5,0.002]
[1766007078918,0.18583765,2825.4,2824.6,1.9807]
[1766007079237,0.18583765,2825.4,2824.6,1.5141]
[1766007079435,0.18583765,2825.4,2824.7,1.9807]
[1766007081442,0.18583765,2825.4,2824.5,0.77643696]
[1766007081641,0.18583765,2825.4,2824.5,1.9827]
[1766007081940,0.18583765,2825.4,2824.6,1.9807]
[1766007082847,0.67392423,2825.4,2824.5,0.002]
[1766007083309,0.67392423,2825.4,2824.5,1.9827]
[1766007083513,0.48808658,2825.3,2824.5,1.9827]
[1766007084640,1.26951004,2825.3,2824.5,1.9827]
[1766007086657,1.26951004,2825.3,2824.6,1.9807]
[1766007086833,1.26951004,2825.3,2824.5,1.9827]
[1766007087552,1.26951004,2825.3,2824.6,1.9807]
[1766007087719,0.18583765,2825.4,2824.9,0.4666]
[1766007087916,0.18583765,2825.4,2825.0,1.9807]
[1766007088335,0.18583765,2825.4,2824.6,1.5141]
[1766007088531,0.18583765,2825.4,2824.8,1.9807]
[1766007096057,0.18583765,2825.4,2824.5,0.002]
[1766007096261,0.18583765,2825.4,2824.5,0.77643695]
[1766007096553,0.18583765,2825.4,2824.7,1.9807]
[1766007096966,0.18583765,2825.4,2824.5,1.84081213]
[1766007096967,0.67392423,2825.4,2824.5,1.84081213]
[1766007097133,0.67392423,2825.4,2824.6,1.9807]
[1766007097533,0.67392423,2825.4,2824.6,1.5141]
[1766007097747,0.67392423,2825.4,2824.7,1.9807]
[1766007099262,0.18583765,2825.4,2824.7,1.9807]
[1766007101260,0.18583765,2825.4,2824.8,0.4598]
[1766007101456,0.18583765,2825.4,2824.8,2.02]
[1766007101957,0.18583765,2825.4,2824.7,1.5602]
[1766007102163,0.18583765,2825.4,2824.8,2.02]
[1766007104470,0.18583765,2825.4,2824.5,1.06637518]
[1766007104669,0.18583765,2825.4,2824.5,1.52617518]
[1766007104869,0.18583765,2825.4,2824.7,0.4598]
[1766007105045,0.18583765,2825.4,2824.5,1.06637518]
[1766007105248,0.18583765,2825.4,2824.9,1.5602]
[1766007105572,0.001,2825.4,2825.0,2.02]
[1766007105878,0.001,2825.9,2825.3,6.67593017]
[1766007106075,0.001,2826.2,2825.7,1.5602]
[1766007106276,0.001,2826.2,2826.1,2.02]
[1766007106444,0.001,2826.4,2825.9,6.67593017]
[1766007106646,0.001,2826.6,2826.1,0.4598]
[1766007106970,0.001,2826.7,2826.2,6.71131337]
[1766007107154,0.19494952,2827.6,2827.0,0.4598]
[1766007107480,0.18445619,2828.0,2827.1,2.222]
[1766007107643,0.48808658,2827.9,2827.1,2.222]
[1766007107850,6.67593017,2827.5,2826.0,1.5602]
[1766007108218,6.67593017,2827.5,2825.9,10.21462192]
[1766007108219,0.48808658,2827.4,2826.2,2.02]
[1766007108347,0.95246681,2827.4,2826.3,2.02]
[1766007108548,0.95246681,2827.4,2826.2,6.67593017]
[1766007108857,0.7628397,2827.3,2826.4,2.02]
[1766007109168,0.7628397,2827.3,2826.2,8.69593017]
[1766007109169,0.48808658,2827.2,2826.2,8.69593017]
[1766007109478,0.48808658,2827.2,2826.2,2.02]
[1766007109769,0.48808658,2827.2,2825.9,1.5602]
[1766007109966,0.48808658,2827.2,2825.8,11.038355]
[1766007110171,0.48808658,2827.2,2826.2,0.4598]
[1766007110369,0.48808658,2827.2,2826.3,2.02]
[1766007110968,0.48808658,2827.2,2826.3,0.4598]
[1766007111267,1.35897081,2827.4,2826.4,2.02]
[1766007112067,1.35897081,2827.4,2826.2,2.02]
[1766007112267,0.405504,2827.2,2826.2,2.02]
[1766007112875,0.86988423,2827.2,2826.1,6.67593017]
[1766007113083,0.46438023,2827.1,2825.9,3.1238355]
[1766007113293,1.35797081,2827.2,2825.9,3.1238355]
[1766007113469,1.35797081,2827.2,2825.6,4.09902283]
[1766007113470,1.27864851,2827.1,2826.0,2.99997657]
[1766007113789,0.46438023,2826.9,2825.6,2.02]
[1766007113956,0.46438023,2826.9,2825.6,1.5602]
[1766007114163,0.46438023,2826.9,2825.5,10.21509136]
[1766007114364,0.46438023,2826.9,2825.8,2.02]
[1766007114686,0.405504,2826.7,2825.6,3.04150914]
[1766007114883,0.46438023,2826.6,2825.3,2.02]
[1766007115087,0.46438023,2826.6,2825.4,0.4598]
[1766007115401,0.46438023,2826.6,2825.2,0.48808658]
[1766007115402,0.95246681,2826.6,2825.3,1.5602]
[1766007115603,0.95246681,2826.6,2825.4,2.02]
[1766007115893,0.7628397,2826.5,2825.5,0.202]
[1766007116664,0.46438023,2826.3,2825.2,2.02]
[1766007119093,0.46438023,2826.3,2825.1,6.67593017]
[1766007119297,0.46438023,2826.3,2825.5,0.002]
[1766007120195,1.93400646,2826.4,2825.5,0.002]
[1766007120395,0.67760695,2826.3,2825.6,1.5602]
[1766007120568,1.06412223,2826.4,2826.2,1.5602]
[1766007120769,2.223e-05,2826.4,2826.3,2.02]
[1766007120972,0.0531058,2826.9,2826.3,2.02]
[1766007121368,0.0531058,2826.9,2826.3,2.32838468]
[1766007122289,0.0531058,2826.9,2826.3,2.02]
[1766007123291,0.0531058,2826.9,2826.1,1.06384676]
[1766007123500,0.0531058,2826.9,2826.1,3.08384676]
[1766007125609,0.0531058,2826.9,2826.2,2.02]
[1766007125908,0.0531058,2826.9,2826.2,2.56119238]
[1766007126209,0.0531058,2826.9,2826.3,0.25611924]
[1766007128406,0.001,2827.4,2826.7,1.5602]
[1766007128585,0.001,2827.4,2826.8,1.5602]
[1766007128986,0.001,2827.4,2826.7,0.4598]
[1766007129184,0.001,2827.4,2826.5,2.02]
[1766007129415,0.001,2827.4,2826.8,1.06359783]
[1766007132295,0.001,2827.4,2826.8,3.04159783]
[1766007133012,0.001,2827.4,2826.8,1.06359783]
[1766007133210,0.001,2827.4,2826.6,2.18]
[1766007133534,0.001,2827.4,2826.7,1.06359783]
[1766007133686,0.001,2827.4,2826.8,1.978]
[1766007133886,0.001,2827.4,2827.0,1.978]
[1766007134327,0.001,2827.4,2827.0,1.5354]
[1766007134538,0.001,2827.4,2826.9,0.30415978]
[1766007134539,0.001,2827.4,2827.1,2.4366098]
[1766007134913,0.001,2827.4,2827.1,0.4586098]
[1766007135799,0.001,2827.4,2826.3,2.23611924]
[1766007135999,0.001,2827.4,2826.7,0.4586098]
[1766007137122,0.001,2827.4,2826.4,2.20161192]
[1766007137499,0.001,2827.4,2826.5,0.86988423]
[1766007137924,0.001,2827.4,2826.4,2.20161192]
[1766007137925,0.18544917,2827.4,2826.4,0.22361192]
[1766007138136,0.18544917,2827.4,2827.0,1.5354]
[1766007138137,0.001,2827.4,2827.0,1.5354]
[1766007138319,0.18442373,2828.1,2826.8,3.53750435]
[1766007138524,0.18442373,2828.1,2827.2,1.5354]
[1766007138726,0.18442373,2828.1,2827.2,1.978]
[1766007139130,0.18442373,2828.1,2827.0,1.5354]
[1766007139341,0.18442373,2828.1,2827.2,1.5354]
[1766007139501,0.18442373,2828.1,2827.2,1.978]
[1766007143848,0.18442373,2828.1,2827.2,2.1758]
[1766007144742,0.18442373,2828.1,2827.2,0.1978]
[1766007144945,0.18442373,2828.1,2827.4,0.4426]
[1766007145643,0.18442373,2828.1,2827.3,1.5354]
[1766007145855,0.18442373,2828.1,2827.1,0.002]
[1766007146144,0.18542373,2828.1,2827.1,0.002]
[1766007147122,0.18542373,2828.1,2827.1,1.98]
[1766007147440,0.18542373,2828.1,2827.1,2.21337504]
[1766007149554,0.18542373,2828.1,2827.2,1.978]
[1766007153153,0.18542373,2828.1,2827.1,0.23537504]
[1766007153329,0.18542373,2828.1,2827.4,1.5354]
[1766007154251,0.18542373,2828.1,2827.1,2.21337504]
[1766007154454,0.18542373,2828.1,2827.2,0.2213375]
[1766007154650,0.18542373,2828.1,2827.2,1.978]
[1766007155459,0.18542373,2828.1,2827.1,0.23537504]
[1766007155774,0.18542373,2828.1,2827.7,1.5354]
[1766007156057,0.001,2828.1,2827.3,1.5354]
[1766007156225,0.001,2828.1,2827.7,1.5354]
[1766007156425,0.001,2828.1,2827.7,1.978]
[1766007156647,0.001,2828.1,2827.7,0.4426]
[1766007156958,0.001,2828.1,2827.7,1.5354]
[1766007157164,0.001,2828.1,2827.7,1.978]
[1766007157355,0.001,2828.1,2827.4,0.50724473]
[1766007157548,0.001,2828.1,2827.6,0.4426]
[1766007157753,0.001,2828.1,2827.7,1.978]
[1766007160190,0.001,2828.1,2827.6,0.24852447]
[1766007160336,0.001,2828.1,2827.1,1.98]
[1766007160541,0.001,2828.1,2827.2,1.978]
[1766007160874,0.001,2828.1,2827.4,0.002]
[1766007162581,0.001,2828.1,2827.4,1.9365]
[1766007163671,0.68653802,2828.1,2827.4,1.9365]
[1766007164467,0.68653802,2828.1,2827.4,0.002]
[1766007164691,0.68653802,2828.1,2827.1,0.002]
[1766007165746,0.405504,2828.0,2827.1,0.002]
[1766007165977,0.86988423,2827.6,2826.8,0.1843847]
[1766007166144,0.86988423,2827.6,2826.5,1.9345]
[1766007166145,0.75404575,2827.5,2826.5,1.9345]
[1766007166340,0.405504,2827.4,2826.3,0.002]
[1766007168849,0.405504,2827.4,2826.3,1.9365]
[1766007171157,0.405504,2827.4,2826.4,1.9345]
[1766007172174,0.46438023,2827.3,2826.4,1.499]
[1766007172474,0.46438023,2827.3,2826.5,0.4355]
[1766007172672,0.46438023,2827.3,2826.9,0.4355]
[1766007172875,0.46438023,2827.3,2827.0,1.9345]
[1766007173249,0.46438023,2827.3,2826.3,0.002]
[1766007173675,0.46438023,2827.3,2826.4,1.499]
[1766007173872,0.46438023,2827.3,2826.7,1.9345]
[1766007174075,0.46438023,2827.3,2826.9,1.9345]
[1766007174575,0.46438023,2827.3,2826.3,0.002]
[1766007174872,0.46438023,2827.3,2826.4,1.9345]
[1766007175182,0.46438023,2827.3,2826.5,1.9345]
[1766007177085,0.46438023,2827.3,2826.4,0.002]
[1766007177380,0.46438023,2827.3,2826.6,0.4355]
[1766007177552,0.46438023,2827.3,2826.6,1.9345]
[1766007179959,0.46438023,2827.3,2826.4,0.35643049]
[1766007179960,0.46438023,2827.3,2826.4,0.002]
[1766007180481,0.46438023,2827.3,2826.4,1.9365]
[1766007181484,0.46438023,2827.3,2826.5,1.9345]
[1766007181690,1.14991825,2827.3,2826.5,1.9345]
[1766007182671,1.14991825,2827.3,2826.4,0.002]
[1766007183265,0.405504,2827.2,2826.3,0.002]
[1766007183467,0.405504,2827.2,2826.2,0.002]
[1766007183684,1.61262315,2827.1,2826.2,0.002]
[1766007184962,1.61262315,2827.1,2826.3,0.002]
[1766007188064,0.18440205,2827.0,2826.3,0.002]
[1766007188693,0.18440205,2827.0,2826.5,1.499]
[1766007188895,0.46438023,2827.1,2826.8,1.9345]
[1766007189189,6.39,2827.2,2826.9,1.9345]
[1766007192095,6.391,2827.2,2826.9,1.9345]
[1766007192294,6.391,2827.2,2826.3,0.002]
[1766007192589,0.46438023,2827.1,2826.3,0.002]
[1766007200495,0.46538023,2827.1,2826.3,0.002]
[1766007201702,0.46538023,2827.1,2826.3,1.8854]
[1766007202702,0.001,2827.1,2826.3,1.8854]
[1766007202880,0.72155681,2827.0,2826.3,0.002]
[1766007203310,0.46438023,2826.9,2826.2,0.002]
[1766007203504,0.46438023,2826.9,2826.0,0.002]
[1766007204289,0.46438023,2826.9,2826.0,1.8854]
[1766007205851,0.46438023,2826.9,2825.5,4.00550739]
[1766007205852,6.6712524,2826.1,2825.5,0.002]
[1766007206014,0.46438023,2826.0,2825.5,0.002]
[1766007206315,0.46438023,2826.0,2825.2,0.002]
[1766007206605,6.6712524,2825.8,2825.1,0.002]
[1766007206909,6.6712524,2825.8,2824.9,0.002]
[1766007207079,1.13150547,2825.7,2824.9,0.002]
[1766007208193,1.13150547,2825.7,2824.9,1.8854]
[1766007208400,1.13150547,2825.7,2825.5,0.002]
[1766007209408,0.66712524,2825.7,2824.9,1.8854]
[1766007209605,0.405504,2826.0,2824.9,1.8854]
[1766007211100,0.83143225,2826.0,2824.9,1.8854]
[1766007211493,0.46438023,2825.9,2824.9,1.8854]
[1766007212191,0.405504,2825.8,2824.9,1.8854]
[1766007213119,0.86988423,2825.9,2824.9,1.8854]
[1766007213294,0.44084577,2825.8,2824.9,1.8854]
[1766007213714,0.44084577,2825.8,2824.9,0.002]
[1766007214031,0.405504,2825.6,2824.5,0.002]
[1766007215182,0.405504,2825.7,2824.7,1.8834]
[1766007215386,0.405504,2825.7,2824.7,0.4179]
[1766007215604,0.405504,2825.7,2824.9,0.4199]
[1766007216123,0.405504,2825.7,2824.9,0.002]
[1766007216124,0.86988423,2825.7,2824.9,0.002]
[1766007216289,0.48495624,2825.6,2824.9,0.002]
[1766007216488,0.405504,2825.7,2824.9,0.002]
[1766007217103,0.86988423,2825.7,2824.9,0.002]
[1766007218421,0.46438023,2825.6,2824.9,0.002]
[1766007218589,0.405504,2825.5,2824.6,1.4655]
[1766007219026,0.405504,2825.7,2824.8,1.8834]
[1766007219215,0.405504,2825.7,2824.8,1.4655]
[1766007219390,0.405504,2825.8,2824.9,1.8834]
[1766007219812,0.86988423,2825.6,2824.9,1.8834]
[1766007222297,0.86988423,2825.6,2824.9,1.8854]
[1766007222492,0.86988423,2825.6,2824.5,0.002]
[1766007222493,0.86988423,2825.4,2824.5,0.002]
[1766007222720,0.72598842,2825.3,2824.5,0.002]
[1766007224095,0.405504,2825.2,2824.3,0.002]
[1766007224911,0.86988423,2825.2,2824.3,0.002]
[1766007225920,0.405504,2825.2,2824.3,0.002]
[1766007226732,4.40949324,2825.2,2824.3,0.002]
[1766007226915,0.91008632,2825.1,2824.3,0.002]
[1766007227311,0.405504,2825.2,2824.3,0.002]
[1766007227512,0.405504,2825.2,2824.3,1.8879]
[1766007228042,0.405504,2825.2,2824.4,1.8859]
[1766007228220,6.57434018,2825.5,2824.4,1.473]
[1766007228417,6.57434018,2825.5,2824.8,1.8859]
[1766007228752,0.46438023,2825.4,2824.8,1.8859]
[1766007228910,0.46438023,2825.4,2824.4,1.473]
[1766007229115,0.405504,2825.3,2824.3,0.002]
[1766007229326,0.83143225,2825.3,2824.3,0.002]
[1766007230927,4.37089675,2825.3,2824.3,0.002]
[1766007231124,0.405504,2825.1,2824.3,0.002]
[1766007233913,0.405504,2825.1,2824.2,0.002]
[1766007234120,0.46438023,2825.0,2824.2,0.002]
[1766007234864,0.46438023,2824.8,2824.0,0.002]
[1766007235144,0.405504,2824.7,2823.9,0.002]
[1766007235656,0.46438023,2824.5,2823.8,0.002]
[1766007235953,0.71455883,2824.4,2823.8,0.002]
[1766007236124,0.71455883,2824.4,2824.3,0.002]
[1766007236319,0.71455883,2824.4,2823.6,0.002]
[1766007236522,0.71455883,2824.4,2823.5,0.002]
[1766007236523,0.46438023,2824.2,2823.5,0.002]
[1766007236759,0.46438023,2824.2,2823.2,0.002]
[1766007236930,0.71455883,2824.1,2823.2,0.002]
[1766007238763,0.71455883,2824.1,2820.9,1.473]
[1766007238764,0.405504,2823.1,2820.9,1.473]
[1766007239079,0.46438023,2821.9,2820.5,6.68120808]
[1766007239276,6.68120808,2821.4,2820.0,6.68120808]
[1766007239425,0.86988423,2821.6,2820.3,1.473]
[1766007239763,0.86988423,2821.6,2820.7,1.8859]
[1766007240328,0.0531058,2821.5,2820.7,1.8859]
[1766007240641,0.0531058,2821.5,2820.0,3.54600785]
[1766007240642,0.405504,2821.4,2820.5,0.4129]
[1766007240849,0.405504,2821.4,2820.1,1.473]
[1766007240850,0.86988423,2821.0,2820.1,1.473]
[1766007241061,0.86988423,2821.0,2819.9,1.8859]
[1766007241253,0.4586098,2820.8,2819.2,3.54706984]
[1766007241552,0.4586098,2820.8,2819.4,1.8859]
[1766007241753,1.55537551,2820.8,2818.6,3.54785161]
[1766007242054,0.0531058,2820.8,2819.1,0.46438023]
[1766007242227,0.0531058,2820.8,2820.0,1.8359]
[1766007242423,0.0531058,2820.8,2819.3,3.54694195]
[1766007242424,0.0531058,2820.8,2820.1,3.54594881]
[1766007242647,0.0531058,2820.8,2820.1,0.4129]
[1766007242846,0.0531058,2821.2,2820.2,0.44835847]
[1766007243049,0.0531058,2821.2,2820.6,0.4149]
[1766007244435,0.0531058,2821.2,2820.6,0.002]
[1766007244741,0.0531058,2821.2,2820.2,0.4129]
[1766007244955,0.405504,2821.1,2820.0,1.8859]
[1766007245257,0.0531058,2821.0,2820.1,0.18859]
[1766007245555,0.0531058,2821.0,2820.1,2.07449]
[1766007245853,0.0531058,2821.0,2820.3,0.4129]
[1766007246155,0.0531058,2821.2,2820.8,1.473]
[1766007246355,0.0531058,2821.2,2820.6,0.4129]
[1766007248028,0.0531058,2821.2,2820.5,1.473]